[Event "Titled Tuesday Blitz July 11 Early 2023"]
[White "Bueno, Alfeu Junior Varela"]
[Black "Sailer, Mike"]
[WhiteFideId "2108879"]
[BlackFideId "2012901"]
[WhiteElo "2375"]
[BlackElo "2156"]
[Result "1-0"]
[Round "9"]
[TimeControl "180+2"]
[Date "2023.07.11"]
[WhiteClock "0:00:16"]
[BlackClock "0:00:07"]
[Board "135"]

1. e4 {[%clk 0:03:00]}  d5 {[%clk 0:02:58]} 2. exd5 {[%clk 0:03:00]}  Qxd5 {[%clk 0:02:56]} 3. Nc3 {[%clk 0:03:01]}  Qd6 {[%clk 0:02:49]} 4. d4 {[%clk 0:03:01]}  c6 {[%clk 0:02:47]} 5. Nge2 {[%clk 0:02:52]}  Bg4 {[%clk 0:02:42]} 6. h3 {[%clk 0:02:47]}  Bh5 {[%clk 0:02:41]} 7. g4 {[%clk 0:02:46]}  Bg6 {[%clk 0:02:39]} 8. Bf4 {[%clk 0:02:44]}  Qd8 {[%clk 0:02:36]} 9. Bg2 {[%clk 0:02:40]}  e6 {[%clk 0:02:36]} 10. Qd2 {[%clk 0:02:36]}  Nf6 {[%clk 0:02:31]} 11. O-O-O {[%clk 0:02:36]}  Bb4 {[%clk 0:02:28]} 12. Qe3 {[%clk 0:02:10]}  Nbd7 {[%clk 0:02:20]} 13. d5 {[%clk 0:02:00]}  cxd5 {[%clk 0:02:01]} 14. Bxd5 {[%clk 0:01:18]}  Bxc3 {[%clk 0:01:35]} 15. Nxc3 {[%clk 0:01:14]}  Nxd5 {[%clk 0:01:31]} 16. Nxd5 {[%clk 0:01:15]}  Rc8 {[%clk 0:00:59]} 17. Bd6 {[%clk 0:01:11]}  Rxc2+ {[%clk 0:00:57]} 18. Kb1 {[%clk 0:01:06]}  Re2+ {[%clk 0:00:46]} 19. Ka1 {[%clk 0:01:04]}  Rxe3 {[%clk 0:00:44]} 20. Nxe3 {[%clk 0:01:05]}  f6 {[%clk 0:00:34]} 21. Ba3 {[%clk 0:00:58]}  Kf7 {[%clk 0:00:26]} 22. Rd6 {[%clk 0:00:56]}  Qc8 {[%clk 0:00:20]} 23. Rhd1 {[%clk 0:00:57]}  Nb6 {[%clk 0:00:17]} 24. f4 {[%clk 0:00:46]}  Be4 {[%clk 0:00:12]} 25. R6d4 {[%clk 0:00:35]}  Bc6 {[%clk 0:00:12]} 26. g5 {[%clk 0:00:31]}  Re8 {[%clk 0:00:11]} 27. gxf6 {[%clk 0:00:30]}  gxf6 {[%clk 0:00:11]} 28. Ng4 {[%clk 0:00:25]}  Nd5 {[%clk 0:00:10]} 29. Rg1 {[%clk 0:00:18]}  Ne7 {[%clk 0:00:07]} 30. Nh6+ {[%clk 0:00:16]}  Kf8 {[%clk 0:00:07]} 31. Rg8# {[%clk 0:00:16]} 1-0


[Site "https://www.chess.com"]

[Event "Titled Tuesday Blitz July 11 Early 2023"]
[White "Hrescak, Ivana"]
[Black "Nagare Kaivalya Sandip"]
[WhiteFideId "14613441"]
[BlackFideId "25957929"]
[WhiteElo "2154"]
[BlackElo "2629"]
[Result "0-1"]
[Round "9"]
[TimeControl "180+2"]
[Date "2023.07.11"]
[WhiteClock "0:00:16"]
[BlackClock "0:01:41"]
[Board "138"]

1. e4 {[%clk 0:03:00]}  c5 {[%clk 0:02:57]} 2. Nf3 {[%clk 0:03:01]}  d6 {[%clk 0:02:56]} 3. Bb5+ {[%clk 0:03:00]}  Bd7 {[%clk 0:02:56]} 4. Bxd7+ {[%clk 0:03:00]}  Qxd7 {[%clk 0:02:56]} 5. c4 {[%clk 0:03:00]}  Nc6 {[%clk 0:02:55]} 6. d4 {[%clk 0:02:57]}  cxd4 {[%clk 0:02:56]} 7. Nxd4 {[%clk 0:02:57]}  Nf6 {[%clk 0:02:57]} 8. Nc3 {[%clk 0:02:57]}  g6 {[%clk 0:02:56]} 9. b3 {[%clk 0:02:57]}  Bg7 {[%clk 0:02:56]} 10. Bb2 {[%clk 0:02:57]}  O-O {[%clk 0:02:57]} 11. O-O {[%clk 0:02:57]}  Rac8 {[%clk 0:02:56]} 12. Rc1 {[%clk 0:02:48]}  Rfd8 {[%clk 0:02:55]} 13. Re1 {[%clk 0:02:46]}  e5 {[%clk 0:02:41]} 14. Nxc6 {[%clk 0:02:33]}  bxc6 {[%clk 0:02:40]} 15. Na4 {[%clk 0:02:25]}  Nh5 {[%clk 0:02:38]} 16. Qd2 {[%clk 0:02:12]}  Nf4 {[%clk 0:02:34]} 17. f3 {[%clk 0:02:06]}  h5 {[%clk 0:02:32]} 18. Rcd1 {[%clk 0:01:53]}  h4 {[%clk 0:02:31]} 19. Qf2 {[%clk 0:01:37]}  h3 {[%clk 0:02:30]} 20. g3 {[%clk 0:01:37]}  Ng2 {[%clk 0:02:29]} 21. Re2 {[%clk 0:01:36]}  f5 {[%clk 0:02:20]} 22. c5 {[%clk 0:01:20]}  fxe4 {[%clk 0:01:59]} 23. Rxd6 {[%clk 0:01:13]}  Qe7 {[%clk 0:01:44]} 24. fxe4 {[%clk 0:00:49]}  Rf8 {[%clk 0:01:43]} 25. Red2 {[%clk 0:00:25]}  Rxf2 {[%clk 0:01:42]} 26. Kxf2 {[%clk 0:00:26]}  Rf8+ {[%clk 0:01:42]} 27. Kg1 {[%clk 0:00:16]}  Qf7 {[%clk 0:01:41]} 0-1


[Site "https://www.chess.com"]

[Event "Titled Tuesday Blitz July 11 Early 2023"]
[White "cedchass2006"]
[Black "Thiel, Thomas"]
[BlackFideId "4615964"]
[WhiteElo "2385"]
[BlackElo "2222"]
[Result "1-0"]
[Round "9"]
[TimeControl "180+2"]
[Date "2023.07.11"]
[WhiteClock "0:00:02"]
[BlackClock "0:00:00"]
[Board "141"]

1. e4 {[%clk 0:02:14]}  d5 {[%clk 0:02:57]} 2. exd5 {[%clk 0:02:04]}  Nf6 {[%clk 0:02:56]} 3. d4 {[%clk 0:02:03]}  Nxd5 {[%clk 0:02:55]} 4. Nf3 {[%clk 0:02:01]}  g6 {[%clk 0:02:51]} 5. c4 {[%clk 0:01:59]}  Nb6 {[%clk 0:02:47]} 6. Nc3 {[%clk 0:01:59]}  Bg7 {[%clk 0:02:43]} 7. Be3 {[%clk 0:01:58]}  O-O {[%clk 0:02:39]} 8. Be2 {[%clk 0:01:52]}  Bg4 {[%clk 0:02:34]} 9. O-O {[%clk 0:01:51]}  Nc6 {[%clk 0:02:30]} 10. d5 {[%clk 0:01:48]}  Bxf3 {[%clk 0:02:29]} 11. Bxf3 {[%clk 0:01:43]}  Ne5 {[%clk 0:02:28]} 12. Be2 {[%clk 0:01:43]}  Nexc4 {[%clk 0:02:21]} 13. Bxb6 {[%clk 0:01:38]}  Nxb6 {[%clk 0:02:20]} 14. Bf3 {[%clk 0:01:36]}  Nc4 {[%clk 0:02:14]} 15. Qe2 {[%clk 0:01:28]}  Nd6 {[%clk 0:02:01]} 16. Ne4 {[%clk 0:01:25]}  Nf5 {[%clk 0:02:00]} 17. Rfd1 {[%clk 0:01:22]}  Nd4 {[%clk 0:01:57]} 18. Qd3 {[%clk 0:01:17]}  Nxf3+ {[%clk 0:01:55]} 19. Qxf3 {[%clk 0:01:18]}  b6 {[%clk 0:01:49]} 20. Qe2 {[%clk 0:01:11]}  Qd7 {[%clk 0:01:46]} 21. Rac1 {[%clk 0:01:10]}  Rac8 {[%clk 0:01:42]} 22. Nc3 {[%clk 0:01:09]}  Rfd8 {[%clk 0:01:40]} 23. Re1 {[%clk 0:00:56]}  Bxc3 {[%clk 0:01:18]} 24. Rxc3 {[%clk 0:00:56]}  Qxd5 {[%clk 0:01:15]} 25. Qxe7 {[%clk 0:00:47]}  Qd6 {[%clk 0:00:58]} 26. g3 {[%clk 0:00:43]}  Rd7 {[%clk 0:00:48]} 27. Qxd6 {[%clk 0:00:36]}  Rxd6 {[%clk 0:00:49]} 28. Re7 {[%clk 0:00:36]}  Rd2 {[%clk 0:00:46]} 29. Rcxc7 {[%clk 0:00:30]}  Rxc7 {[%clk 0:00:46]} 30. Rxc7 {[%clk 0:00:31]}  a5 {[%clk 0:00:43]} 31. b4 {[%clk 0:00:17]}  axb4 {[%clk 0:00:38]} 32. Rc6 {[%clk 0:00:17]}  Rxa2 {[%clk 0:00:36]} 33. Rxb6 {[%clk 0:00:17]}  Rb2 {[%clk 0:00:36]} 34. Kg2 {[%clk 0:00:17]}  b3 {[%clk 0:00:36]} 35. h4 {[%clk 0:00:17]}  h5 {[%clk 0:00:33]} 36. Kf3 {[%clk 0:00:17]}  Rb1 {[%clk 0:00:32]} 37. Ke3 {[%clk 0:00:17]}  Kf8 {[%clk 0:00:28]} 38. Kf3 {[%clk 0:00:14]}  Ke7 {[%clk 0:00:28]} 39. Ke2 {[%clk 0:00:12]}  Kd7 {[%clk 0:00:26]} 40. Rb7+ {[%clk 0:00:09]}  Kc6 {[%clk 0:00:24]} 41. Rb8 {[%clk 0:00:09]}  Kc5 {[%clk 0:00:21]} 42. Kd3 {[%clk 0:00:09]}  Rf1 {[%clk 0:00:12]} 43. Rxb3 {[%clk 0:00:03]}  Rxf2 {[%clk 0:00:11]} 44. Rb7 {[%clk 0:00:03]}  Rf3+ {[%clk 0:00:09]} 45. Ke4 {[%clk 0:00:04]}  Rxg3 {[%clk 0:00:09]} 46. Rxf7 {[%clk 0:00:04]}  Rg4+ {[%clk 0:00:10]} 47. Kf3 {[%clk 0:00:03]}  Rxh4 {[%clk 0:00:05]} 48. Rd7 {[%clk 0:00:03]}  Rg4 {[%clk 0:00:00]} 49. Rd8 {[%clk 0:00:02]} 1-0


[Site "https://www.chess.com"]

[Event "Titled Tuesday Blitz July 11 Early 2023"]
[White "Gyulamiryan-koryun"]
[Black "tomobeast"]
[WhiteElo "1829"]
[BlackElo "2271"]
[Result "1-0"]
[Round "9"]
[TimeControl "180+2"]
[Date "2023.07.11"]
[WhiteClock "0:01:29"]
[BlackClock "0:00:16"]
[Board "145"]

1. e4 {[%clk 0:02:56]}  c5 {[%clk 0:02:19]} 2. Be2 {[%clk 0:02:52]}  Nf6 {[%clk 0:02:17]} 3. d3 {[%clk 0:02:50]}  g6 {[%clk 0:02:15]} 4. f4 {[%clk 0:02:50]}  Bg7 {[%clk 0:02:15]} 5. Nf3 {[%clk 0:02:49]}  Nc6 {[%clk 0:02:15]} 6. c3 {[%clk 0:02:48]}  O-O {[%clk 0:02:11]} 7. O-O {[%clk 0:02:48]}  d6 {[%clk 0:02:11]} 8. Na3 {[%clk 0:02:44]}  a6 {[%clk 0:02:09]} 9. Nc4 {[%clk 0:02:43]}  b5 {[%clk 0:02:09]} 10. Ne3 {[%clk 0:02:41]}  e6 {[%clk 0:02:08]} 11. Qc2 {[%clk 0:02:37]}  d5 {[%clk 0:02:07]} 12. e5 {[%clk 0:02:36]}  Nh5 {[%clk 0:02:04]} 13. Ng4 {[%clk 0:02:31]}  f6 {[%clk 0:02:01]} 14. Bd2 {[%clk 0:02:15]}  fxe5 {[%clk 0:01:48]} 15. Ngxe5 {[%clk 0:02:15]}  Nxe5 {[%clk 0:01:37]} 16. Nxe5 {[%clk 0:02:14]}  Qh4 {[%clk 0:01:25]} 17. Bxh5 {[%clk 0:02:06]}  Qxh5 {[%clk 0:01:23]} 18. d4 {[%clk 0:02:01]}  Bb7 {[%clk 0:01:12]} 19. Rae1 {[%clk 0:01:58]}  Rac8 {[%clk 0:01:10]} 20. Re3 {[%clk 0:01:50]}  cxd4 {[%clk 0:01:09]} 21. Rh3 {[%clk 0:01:49]}  Qe2 {[%clk 0:00:59]} 22. Nxg6 {[%clk 0:01:45]}  hxg6 {[%clk 0:00:56]} 23. Qxg6 {[%clk 0:01:44]}  Qxd2 {[%clk 0:00:50]} 24. Qxe6+ {[%clk 0:01:43]}  Rf7 {[%clk 0:00:48]} 25. f5 {[%clk 0:01:40]}  dxc3 {[%clk 0:00:29]} 26. f6 {[%clk 0:01:39]}  Qd4+ {[%clk 0:00:29]} 27. Kh1 {[%clk 0:01:38]}  cxb2 {[%clk 0:00:25]} 28. Rg3 {[%clk 0:01:32]}  Rc1 {[%clk 0:00:23]} 29. Rxg7+ {[%clk 0:01:31]}  Kh8 {[%clk 0:00:20]} 30. Qh3+ {[%clk 0:01:29]}  Qh4 {[%clk 0:00:16]} 31. Qxh4# {[%clk 0:01:29]} 1-0


[Site "https://www.chess.com"]

[Event "Titled Tuesday Blitz July 11 Early 2023"]
[White "HeinichessPY"]
[Black "Lohani, Sujana"]
[BlackFideId "12311987"]
[WhiteElo "2162"]
[BlackElo "1939"]
[Result "1-0"]
[Round "9"]
[TimeControl "180+2"]
[Date "2023.07.11"]
[WhiteClock "0:02:02"]
[BlackClock "0:00:00"]
[Board "146"]

1. e4 {[%clk 0:02:59]}  c5 {[%clk 0:01:38]} 2. Nc3 {[%clk 0:02:49]}  Nc6 {[%clk 0:01:37]} 3. f4 {[%clk 0:02:49]}  e6 {[%clk 0:01:37]} 4. g3 {[%clk 0:02:48]}  d5 {[%clk 0:01:30]} 5. d3 {[%clk 0:02:45]}  dxe4 {[%clk 0:01:25]} 6. Nxe4 {[%clk 0:02:44]}  Nf6 {[%clk 0:01:24]} 7. Bg2 {[%clk 0:02:43]}  Be7 {[%clk 0:01:23]} 8. Nf2 {[%clk 0:02:43]}  O-O {[%clk 0:01:15]} 9. Nf3 {[%clk 0:02:43]}  Nd4 {[%clk 0:01:13]} 10. O-O {[%clk 0:02:43]}  Rb8 {[%clk 0:01:09]} 11. Ne5 {[%clk 0:02:43]}  Qc7 {[%clk 0:01:03]} 12. c3 {[%clk 0:02:36]}  Nb5 {[%clk 0:01:01]} 13. g4 {[%clk 0:02:28]}  Nd6 {[%clk 0:00:52]} 14. g5 {[%clk 0:02:22]}  Nd5 {[%clk 0:00:51]} 15. Qh5 {[%clk 0:02:18]}  Nf5 {[%clk 0:00:43]} 16. Nfg4 {[%clk 0:02:07]}  b6 {[%clk 0:00:35]} 17. Be4 {[%clk 0:02:06]}  Bb7 {[%clk 0:00:32]} 18. Bxf5 {[%clk 0:02:02]}  exf5 {[%clk 0:00:32]} 19. Nh6+ {[%clk 0:02:03]}  gxh6 {[%clk 0:00:25]} 20. gxh6 {[%clk 0:02:03]}  Nf6 {[%clk 0:00:00]} 21. Qg5+ {[%clk 0:02:02]} 1-0


[Site "https://www.chess.com"]

[Event "Titled Tuesday Blitz July 11 Early 2023"]
[White "Sebag, Marie"]
[Black "Vila Dupla, Aurelio"]
[WhiteFideId "617822"]
[BlackFideId "2203383"]
[WhiteElo "2510"]
[BlackElo "2142"]
[Result "1-0"]
[Round "9"]
[TimeControl "180+2"]
[Date "2023.07.11"]
[WhiteClock "0:01:28"]
[BlackClock "0:00:17"]
[Board "147"]

1. d4 {[%clk 0:03:00]}  Nf6 {[%clk 0:02:55]} 2. c4 {[%clk 0:02:58]}  g6 {[%clk 0:02:54]} 3. Nc3 {[%clk 0:02:59]}  d5 {[%clk 0:02:54]} 4. cxd5 {[%clk 0:02:59]}  Nxd5 {[%clk 0:02:55]} 5. Bd2 {[%clk 0:02:59]}  Nb6 {[%clk 0:02:54]} 6. Nf3 {[%clk 0:02:58]}  Bg7 {[%clk 0:02:53]} 7. e3 {[%clk 0:02:58]}  O-O {[%clk 0:02:53]} 8. Be2 {[%clk 0:02:55]}  c5 {[%clk 0:02:49]} 9. dxc5 {[%clk 0:02:54]}  N6d7 {[%clk 0:02:49]} 10. b4 {[%clk 0:02:53]}  a5 {[%clk 0:02:46]} 11. a3 {[%clk 0:02:54]}  axb4 {[%clk 0:02:46]} 12. axb4 {[%clk 0:02:54]}  Rxa1 {[%clk 0:02:45]} 13. Qxa1 {[%clk 0:02:54]}  Nc6 {[%clk 0:02:43]} 14. Qb1 {[%clk 0:02:51]}  Nde5 {[%clk 0:02:32]} 15. Nxe5 {[%clk 0:02:40]}  Nxe5 {[%clk 0:02:26]} 16. Qc2 {[%clk 0:02:26]}  Bf5 {[%clk 0:02:23]} 17. e4 {[%clk 0:02:25]}  Be6 {[%clk 0:02:08]} 18. O-O {[%clk 0:02:22]}  Nc6 {[%clk 0:02:08]} 19. Nb5 {[%clk 0:02:18]}  Nd4 {[%clk 0:01:55]} 20. Nxd4 {[%clk 0:02:17]}  Qxd4 {[%clk 0:01:56]} 21. b5 {[%clk 0:02:12]}  Ra8 {[%clk 0:01:50]} 22. Be3 {[%clk 0:02:07]}  Qb4 {[%clk 0:01:38]} 23. Rb1 {[%clk 0:02:02]}  Qa5 {[%clk 0:01:02]} 24. c6 {[%clk 0:01:59]}  Qc7 {[%clk 0:01:02]} 25. b6 {[%clk 0:01:57]}  Qc8 {[%clk 0:00:33]} 26. cxb7 {[%clk 0:01:36]}  Qxb7 {[%clk 0:00:32]} 27. Qc7 {[%clk 0:01:36]}  Rb8 {[%clk 0:00:25]} 28. Qxb7 {[%clk 0:01:34]}  Rxb7 {[%clk 0:00:25]} 29. Ba6 {[%clk 0:01:33]}  Rb8 {[%clk 0:00:17]} 30. Bf4 {[%clk 0:01:28]} 1-0


[Site "https://www.chess.com"]

[Event "Titled Tuesday Blitz July 11 Early 2023"]
[White "Horokoskii"]
[Black "Balla, Tamas-Kristof"]
[BlackFideId "1208497"]
[WhiteElo "2136"]
[BlackElo "2428"]
[Result "0-1"]
[Round "9"]
[TimeControl "180+2"]
[Date "2023.07.11"]
[WhiteClock "0:00:16"]
[BlackClock "0:01:31"]
[Board "148"]

1. d4 {[%clk 0:02:56]}  d5 {[%clk 0:02:59]} 2. c4 {[%clk 0:02:52]}  e6 {[%clk 0:02:59]} 3. g3 {[%clk 0:02:52]}  c5 {[%clk 0:02:56]} 4. cxd5 {[%clk 0:02:45]}  exd5 {[%clk 0:02:56]} 5. Nf3 {[%clk 0:02:44]}  Nc6 {[%clk 0:02:54]} 6. Bg2 {[%clk 0:02:44]}  Nf6 {[%clk 0:02:54]} 7. O-O {[%clk 0:02:43]}  Be6 {[%clk 0:02:55]} 8. Nc3 {[%clk 0:02:36]}  cxd4 {[%clk 0:02:53]} 9. Nxd4 {[%clk 0:02:36]}  Be7 {[%clk 0:02:53]} 10. Bf4 {[%clk 0:02:30]}  O-O {[%clk 0:02:50]} 11. Rc1 {[%clk 0:02:29]}  a6 {[%clk 0:02:48]} 12. a3 {[%clk 0:02:27]}  h6 {[%clk 0:02:46]} 13. h4 {[%clk 0:02:26]}  Qd7 {[%clk 0:02:39]} 14. Re1 {[%clk 0:02:05]}  Bh3 {[%clk 0:02:35]} 15. Bh1 {[%clk 0:02:05]}  Rad8 {[%clk 0:02:32]} 16. b4 {[%clk 0:02:01]}  Rfe8 {[%clk 0:02:26]} 17. e3 {[%clk 0:01:41]}  Bd6 {[%clk 0:02:17]} 18. Bxd6 {[%clk 0:01:35]}  Qxd6 {[%clk 0:02:17]} 19. Bg2 {[%clk 0:01:34]}  Bxg2 {[%clk 0:02:16]} 20. Kxg2 {[%clk 0:01:35]}  Ne5 {[%clk 0:02:16]} 21. Nf3 {[%clk 0:01:32]}  Nc4 {[%clk 0:02:16]} 22. Nxd5 {[%clk 0:01:10]}  Nxd5 {[%clk 0:02:00]} 23. Rxc4 {[%clk 0:01:03]}  Nxe3+ {[%clk 0:01:57]} 24. fxe3 {[%clk 0:01:04]}  Qxd1 {[%clk 0:01:57]} 25. Rxd1 {[%clk 0:01:05]}  Rxd1 {[%clk 0:01:57]} 26. Kf2 {[%clk 0:01:02]}  Ra1 {[%clk 0:01:57]} 27. Rc3 {[%clk 0:01:02]}  Ra2+ {[%clk 0:01:56]} 28. Kf1 {[%clk 0:01:00]}  Rd8 {[%clk 0:01:55]} 29. Nd4 {[%clk 0:00:55]}  Rd5 {[%clk 0:01:41]} 30. Kg1 {[%clk 0:00:46]}  a5 {[%clk 0:01:41]} 31. b5 {[%clk 0:00:43]}  g5 {[%clk 0:01:36]} 32. h5 {[%clk 0:00:41]}  Re5 {[%clk 0:01:32]} 33. Nc2 {[%clk 0:00:16]}  g4 {[%clk 0:01:31]} 0-1


[Site "https://www.chess.com"]

[Event "Titled Tuesday Blitz July 11 Early 2023"]
[White "Lisjak, Zlatko"]
[Black "Blokhin, Sofia"]
[WhiteFideId "14502186"]
[BlackFideId "4508190"]
[WhiteElo "2163"]
[BlackElo "2284"]
[Result "0-1"]
[Round "9"]
[TimeControl "180+2"]
[Date "2023.07.11"]
[WhiteClock "0:00:00"]
[BlackClock "0:00:20"]
[Board "150"]

1. d4 {[%clk 0:03:00]}  f5 {[%clk 0:02:58]} 2. Bg5 {[%clk 0:02:57]}  g6 {[%clk 0:02:58]} 3. h4 {[%clk 0:02:54]}  Bg7 {[%clk 0:02:53]} 4. h5 {[%clk 0:02:54]}  Nf6 {[%clk 0:02:53]} 5. h6 {[%clk 0:02:45]}  Bf8 {[%clk 0:02:52]} 6. Nd2 {[%clk 0:02:40]}  d6 {[%clk 0:02:51]} 7. Ngf3 {[%clk 0:02:35]}  Nc6 {[%clk 0:02:49]} 8. e3 {[%clk 0:02:26]}  Be6 {[%clk 0:02:40]} 9. c4 {[%clk 0:02:21]}  Bf7 {[%clk 0:02:36]} 10. d5 {[%clk 0:02:13]}  Ne5 {[%clk 0:02:35]} 11. Nxe5 {[%clk 0:02:03]}  dxe5 {[%clk 0:02:35]} 12. Nf3 {[%clk 0:02:01]}  Ng4 {[%clk 0:02:25]} 13. Qd2 {[%clk 0:01:49]}  Qd6 {[%clk 0:02:22]} 14. O-O-O {[%clk 0:01:47]}  O-O-O {[%clk 0:02:17]} 15. Kb1 {[%clk 0:01:33]}  Nf6 {[%clk 0:02:06]} 16. Qc3 {[%clk 0:01:25]}  Ne4 {[%clk 0:02:03]} 17. Qxe5 {[%clk 0:01:15]}  Qxe5 {[%clk 0:01:48]} 18. Nxe5 {[%clk 0:01:11]}  Nxg5 {[%clk 0:01:48]} 19. f3 {[%clk 0:01:10]}  Be8 {[%clk 0:01:41]} 20. Bd3 {[%clk 0:01:03]}  Nf7 {[%clk 0:01:40]} 21. f4 {[%clk 0:00:50]}  Nxh6 {[%clk 0:01:36]} 22. e4 {[%clk 0:00:50]}  fxe4 {[%clk 0:01:29]} 23. Bxe4 {[%clk 0:00:48]}  Nf7 {[%clk 0:01:25]} 24. Nd3 {[%clk 0:00:37]}  Nd6 {[%clk 0:01:23]} 25. Rhe1 {[%clk 0:00:23]}  Nxc4 {[%clk 0:01:19]} 26. Ne5 {[%clk 0:00:21]}  Bg7 {[%clk 0:01:16]} 27. Nxc4 {[%clk 0:00:20]}  Bb5 {[%clk 0:01:11]} 28. Ne5 {[%clk 0:00:15]}  Rhf8 {[%clk 0:01:07]} 29. g3 {[%clk 0:00:15]}  Bxe5 {[%clk 0:00:40]} 30. fxe5 {[%clk 0:00:14]}  Rf2 {[%clk 0:00:41]} 31. Rh1 {[%clk 0:00:12]}  Re2 {[%clk 0:00:35]} 32. Rhe1 {[%clk 0:00:09]}  Rxe1 {[%clk 0:00:31]} 33. Rxe1 {[%clk 0:00:09]}  Rf8 {[%clk 0:00:30]} 34. Rh1 {[%clk 0:00:07]}  Rf1+ {[%clk 0:00:25]} 35. Rxf1 {[%clk 0:00:04]}  Bxf1 {[%clk 0:00:26]} 36. Kc2 {[%clk 0:00:04]}  Kd7 {[%clk 0:00:25]} 37. Bf3 {[%clk 0:00:02]}  c6 {[%clk 0:00:23]} 38. Kc3 {[%clk 0:00:00]}  cxd5 {[%clk 0:00:20]} 0-1


[Site "https://www.chess.com"]

[Event "Titled Tuesday Blitz July 11 Early 2023"]
[White "campochess"]
[Black "Dwilewicz, Katarzyna"]
[BlackFideId "1148486"]
[WhiteElo "2120"]
[BlackElo "2276"]
[Result "0-1"]
[Round "9"]
[TimeControl "180+2"]
[Date "2023.07.11"]
[WhiteClock "0:00:16"]
[BlackClock "0:00:46"]
[Board "151"]

1. d4 {[%clk 0:02:59]}  g6 {[%clk 0:02:59]} 2. c4 {[%clk 0:02:57]}  Bg7 {[%clk 0:02:59]} 3. Nc3 {[%clk 0:02:56]}  d6 {[%clk 0:03:00]} 4. Nf3 {[%clk 0:02:55]}  Nd7 {[%clk 0:03:00]} 5. e4 {[%clk 0:02:54]}  e5 {[%clk 0:03:00]} 6. d5 {[%clk 0:02:53]}  Ne7 {[%clk 0:02:59]} 7. Bg5 {[%clk 0:02:50]}  h6 {[%clk 0:02:58]} 8. Bd2 {[%clk 0:02:48]}  O-O {[%clk 0:02:58]} 9. Be2 {[%clk 0:02:47]}  f5 {[%clk 0:02:58]} 10. O-O {[%clk 0:02:45]}  Nc5 {[%clk 0:02:54]} 11. exf5 {[%clk 0:02:40]}  gxf5 {[%clk 0:02:53]} 12. Rc1 {[%clk 0:02:36]}  a5 {[%clk 0:02:42]} 13. a3 {[%clk 0:02:34]}  e4 {[%clk 0:02:41]} 14. Ne1 {[%clk 0:02:33]}  a4 {[%clk 0:02:37]} 15. Rc2 {[%clk 0:02:23]}  Ng6 {[%clk 0:02:35]} 16. Be3 {[%clk 0:02:19]}  Nd7 {[%clk 0:02:18]} 17. Bh5 {[%clk 0:02:12]}  Nde5 {[%clk 0:02:18]} 18. Bxg6 {[%clk 0:02:10]}  Nxg6 {[%clk 0:02:17]} 19. f3 {[%clk 0:02:07]}  f4 {[%clk 0:02:15]} 20. Bd4 {[%clk 0:02:07]}  e3 {[%clk 0:02:11]} 21. c5 {[%clk 0:02:02]}  dxc5 {[%clk 0:02:03]} 22. Bxc5 {[%clk 0:01:59]}  Rf5 {[%clk 0:02:03]} 23. Nd3 {[%clk 0:01:41]}  b6 {[%clk 0:02:01]} 24. Bb4 {[%clk 0:01:35]}  Bb7 {[%clk 0:01:51]} 25. Qb1 {[%clk 0:01:13]}  Bxd5 {[%clk 0:01:43]} 26. Nxd5 {[%clk 0:01:12]}  Rxd5 {[%clk 0:01:44]} 27. Qa2 {[%clk 0:01:11]}  Kh7 {[%clk 0:01:41]} 28. Nc1 {[%clk 0:01:04]}  c5 {[%clk 0:01:35]} 29. Bc3 {[%clk 0:00:58]}  Ne5 {[%clk 0:01:30]} 30. Ne2 {[%clk 0:00:53]}  Rd1 {[%clk 0:01:29]} 31. Rc1 {[%clk 0:00:51]}  Rxf1+ {[%clk 0:01:28]} 32. Rxf1 {[%clk 0:00:50]}  Qd3 {[%clk 0:01:22]} 33. Qb1 {[%clk 0:00:46]}  Rd8 {[%clk 0:01:20]} 34. Nxf4 {[%clk 0:00:42]}  Qxb1 {[%clk 0:01:19]} 35. Rxb1 {[%clk 0:00:42]}  Nd3 {[%clk 0:01:05]} 36. Rd1 {[%clk 0:00:38]}  Bxc3 {[%clk 0:00:58]} 37. bxc3 {[%clk 0:00:31]}  c4 {[%clk 0:00:55]} 38. Kf1 {[%clk 0:00:26]}  Rd6 {[%clk 0:00:47]} 39. Ke2 {[%clk 0:00:25]}  Nxf4+ {[%clk 0:00:46]} 40. Kxe3 {[%clk 0:00:20]}  Rxd1 {[%clk 0:00:47]} 41. Kxf4 {[%clk 0:00:16]}  Rd3 {[%clk 0:00:46]} 0-1


[Site "https://www.chess.com"]

[Event "Titled Tuesday Blitz July 11 Early 2023"]
[White "Navyblue1"]
[Black "Schachpanda_Youtube"]
[WhiteElo "1782"]
[BlackElo "2183"]
[Result "0-1"]
[Round "9"]
[TimeControl "180+2"]
[Date "2023.07.11"]
[WhiteClock "0:00:11"]
[BlackClock "0:00:29"]
[Board "155"]

1. d4 {[%clk 0:03:00]}  d5 {[%clk 0:02:56]} 2. c4 {[%clk 0:03:00]}  e6 {[%clk 0:02:56]} 3. cxd5 {[%clk 0:03:00]}  exd5 {[%clk 0:02:55]} 4. Nc3 {[%clk 0:03:00]}  c6 {[%clk 0:02:55]} 5. Qc2 {[%clk 0:02:58]}  Nf6 {[%clk 0:02:54]} 6. Bg5 {[%clk 0:02:59]}  Be6 {[%clk 0:02:54]} 7. e3 {[%clk 0:02:58]}  h6 {[%clk 0:02:55]} 8. Bh4 {[%clk 0:02:58]}  Nbd7 {[%clk 0:02:55]} 9. Bd3 {[%clk 0:02:58]}  g5 {[%clk 0:02:55]} 10. Bg3 {[%clk 0:02:57]}  Nh5 {[%clk 0:02:56]} 11. Nge2 {[%clk 0:02:49]}  Nxg3 {[%clk 0:02:55]} 12. Nxg3 {[%clk 0:02:49]}  h5 {[%clk 0:02:55]} 13. e4 {[%clk 0:02:30]}  h4 {[%clk 0:02:50]} 14. Nf5 {[%clk 0:02:27]}  Qf6 {[%clk 0:02:36]} 15. e5 {[%clk 0:01:56]}  Qd8 {[%clk 0:02:25]} 16. a3 {[%clk 0:01:34]}  Qb6 {[%clk 0:02:01]} 17. Na4 {[%clk 0:01:19]}  Qc7 {[%clk 0:01:52]} 18. b4 {[%clk 0:01:15]}  Nxe5 {[%clk 0:01:25]} 19. Ne3 {[%clk 0:00:37]}  Nxd3+ {[%clk 0:01:20]} 20. Qxd3 {[%clk 0:00:37]}  O-O-O {[%clk 0:01:16]} 21. O-O {[%clk 0:00:22]}  Bd6 {[%clk 0:01:14]} 22. h3 {[%clk 0:00:20]}  g4 {[%clk 0:01:10]} 23. Nxg4 {[%clk 0:00:19]}  Bxg4 {[%clk 0:01:02]} 24. hxg4 {[%clk 0:00:19]}  Rdg8 {[%clk 0:00:53]} 25. Qh3 {[%clk 0:00:19]}  f5 {[%clk 0:00:50]} 26. gxf5 {[%clk 0:00:18]}  Kb8 {[%clk 0:00:49]} 27. f4 {[%clk 0:00:17]}  Rg3 {[%clk 0:00:44]} 28. Qh1 {[%clk 0:00:16]}  Bxf4 {[%clk 0:00:42]} 29. Rae1 {[%clk 0:00:13]}  Rhg8 {[%clk 0:00:39]} 30. Rf2 {[%clk 0:00:12]}  h3 {[%clk 0:00:38]} 31. Ree2 {[%clk 0:00:11]}  Be3 {[%clk 0:00:33]} 32. Kf1 {[%clk 0:00:11]}  Bxf2 {[%clk 0:00:32]} 33. Rxf2 {[%clk 0:00:12]}  hxg2+ {[%clk 0:00:30]} 34. Rxg2 {[%clk 0:00:12]}  Rxg2 {[%clk 0:00:30]} 35. Qxg2 {[%clk 0:00:12]}  Rxg2 {[%clk 0:00:30]} 36. Kxg2 {[%clk 0:00:11]}  Qf4 {[%clk 0:00:29]} 0-1


[Site "https://www.chess.com"]